bitfinex/quotes_BTCUSD_20250730
["timestamp","ask_amount","ask_price","bid_price","bid_amount"]
[1753896185970,0.0324,118080.0,118070.0,0.2509973]
[1753896186861,0.0324,118080.0,118070.0,0.42038833]
[1753896188426,0.0324,118080.0,118070.0,0.69399778]
[1753896188649,0.0324,118080.0,118070.0,0.86338881]
[1753896189317,0.0181,118080.0,118070.0,0.89201281]
[1753896189551,0.0328,118090.0,118070.0,0.89201281]
[1753896189787,0.03328572,118090.0,118080.0,0.1332372]
[1753896190023,0.03328572,118090.0,118080.0,0.66071498]
[1753896190250,0.03328572,118090.0,118080.0,0.65859778]
[1753896190476,0.4762862,118090.0,118080.0,0.2451573]
[1753896193591,0.4762862,118090.0,118080.0,0.2461573]
[1753896195256,0.4762862,118090.0,118080.0,0.2165973]
[1753896198877,0.4762862,118090.0,118080.0,0.2163573]
[1753896202948,0.4762862,118090.0,118080.0,0.2459173]
[1753896208774,0.4762862,118090.0,118080.0,0.2163573]
[1753896209202,0.4762862,118090.0,118080.0,0.2450773]
[1753896209402,0.4762862,118090.0,118080.0,0.2163573]
[1753896209852,0.4762862,118090.0,118080.0,0.2450773]
[1753896211328,0.8162862,118090.0,118080.0,0.2448373]
[1753896215328,0.8019862,118090.0,118080.0,0.2448373]
[1753896215587,0.7838862,118090.0,118080.0,0.2478473]
[1753896216026,0.7838862,118090.0,118080.0,0.2498473]
[1753896220492,0.34088572,118090.0,118080.0,0.2891473]
[1753896220718,0.00088572,118090.0,118080.0,0.45852399]
[1753896220945,0.00088572,118090.0,118080.0,0.90152447]
[1753896221150,0.00088572,118090.0,118080.0,0.2891473]
[1753896224305,0.4438862,118090.0,118080.0,0.2891473]
[1753896224950,0.00088572,118090.0,118080.0,0.2891473]
[1753896225173,0.4438862,118090.0,118080.0,0.2890273]
[1753896225382,0.4438862,118090.0,118080.0,0.2447173]
[1753896226566,0.4438862,118090.0,118080.0,0.2477273]
[1753896227014,0.4438862,118090.0,118080.0,0.2447173]
[1753896227422,0.45182736,118090.0,118080.0,0.1141973]
[1753896227643,0.45182736,118090.0,118080.0,0.2446773]
[1753896229531,0.45182736,118090.0,118080.0,0.2476873]
[1753896229987,0.45182736,118090.0,118080.0,0.2446773]
[1753896230827,0.45182736,118090.0,118080.0,0.1141973]
[1753896231071,0.47782736,118090.0,118080.0,0.16012]
[1753896232010,0.46672736,118090.0,118080.0,0.16012]
[1753896232459,0.46872736,118090.0,118080.0,0.16012]
[1753896233364,0.45383087,118090.0,118080.0,0.15912]
[1753896233839,0.45483087,118090.0,118080.0,0.15912]
[1753896234060,0.45483074,118090.0,118080.0,0.15912]
[1753896236468,0.45483074,118090.0,118080.0,0.02872]
[1753896236677,0.82083074,118090.0,118080.0,0.15908]
[1753896237382,0.7868862,118090.0,118080.0,0.15908]
[1753896240864,0.79483084,118090.0,118080.0,0.16221]
[1753896242509,0.79483084,118090.0,118080.0,0.18377]
[1753896242734,0.79483084,118090.0,118080.0,0.20367]
[1753896243637,0.79483084,118090.0,118080.0,0.18377]
[1753896244693,0.79483035,118090.0,118080.0,0.18377]
[1753896244857,0.35182987,118090.0,118080.0,0.18377]
[1753896245073,0.79483035,118090.0,118080.0,0.18377]
[1753896246668,0.79483035,118090.0,118080.0,0.20457]
[1753896249180,0.79483035,118090.0,118080.0,0.18121]
[1753896249637,0.35182987,118090.0,118080.0,0.20397]
[1753896249837,0.79483035,118090.0,118080.0,0.20397]
[1753896250689,0.79483108,118090.0,118080.0,0.20397]
[1753896252873,0.79483108,118090.0,118080.0,0.20201]
[1753896253097,0.79483108,118090.0,118080.0,0.16221]
[1753896253714,1.38512657,118090.0,118070.0,0.02253]
[1753896253913,0.88600096,118080.0,118070.0,0.15808]
[1753896254326,0.44300048,118080.0,118070.0,0.18141]
[1753896254490,0.44300048,118080.0,118070.0,0.20357]
[1753896254894,0.44400048,118080.0,118070.0,0.20357]
[1753896255116,0.45487094,118080.0,118070.0,0.20357]
[1753896259361,0.89787142,118080.0,118070.0,0.07125]
[1753896259595,0.89787142,118080.0,118070.0,0.15808]
[1753896259596,1.2458164,118080.0,118070.0,0.15808]
[1753896259867,1.36823142,118080.0,118070.0,0.02772]
[1753896261445,1.36823142,118080.0,118070.0,0.04772]
[1753896261874,1.36823142,118080.0,118070.0,0.02772]
[1753896262758,0.3484689,118070.0,118060.0,0.02772]
[1753896262968,5.0,118060.0,118050.0,0.02772]
[1753896263186,0.80904481,118060.0,118050.0,0.15808]
[1753896263394,0.93940481,118060.0,118050.0,0.02772]
[1753896263819,0.96442145,118060.0,118050.0,0.04792]
[1753896264035,0.96442145,118060.0,118050.0,0.05105]
[1753896264247,0.93837712,118060.0,118050.0,0.05105]
[1753896265099,0.49737664,118060.0,118050.0,0.05105]
[1753896265309,0.94037712,118060.0,118050.0,0.05105]
[1753896265756,0.94137712,118060.0,118050.0,0.05105]
[1753896265960,0.97325688,118060.0,118050.0,0.05105]
[1753896266175,0.96478655,118060.0,118050.0,0.05105]
[1753896266391,0.95731657,118060.0,118050.0,0.05105]
[1753896266595,0.95931657,118060.0,118050.0,0.05105]
[1753896267023,0.9593165,118060.0,118050.0,0.05105]
[1753896267457,0.95084674,118060.0,118050.0,0.05105]
[1753896267668,0.9593165,118060.0,118050.0,0.05105]
[1753896268108,0.95084674,118060.0,118050.0,0.07085]
[1753896268319,0.9593165,118060.0,118050.0,0.07085]
[1753896268526,0.95084674,118060.0,118050.0,0.07085]
[1753896268813,0.94237712,118060.0,118050.0,0.07085]
[1753896269217,0.95084681,118060.0,118050.0,0.07292]
[1753896269476,0.95084674,118060.0,118050.0,0.07292]
[1753896269935,0.9593165,118060.0,118050.0,0.07292]
[1753896270449,0.95084674,118060.0,118050.0,0.07292]
[1753896270708,0.95931643,118060.0,118050.0,0.07292]
[1753896270913,0.96778626,118060.0,118050.0,0.07292]
[1753896271130,0.95931643,118060.0,118050.0,0.07292]
[1753896271794,0.96778619,118060.0,118050.0,0.07292]
[1753896272669,0.9593165,118060.0,118050.0,0.07292]
[1753896272857,0.95084674,118060.0,118050.0,0.07292]
[1753896273315,0.95931657,118060.0,118050.0,0.07292]
[1753896273536,0.9593165,118060.0,118050.0,0.07292]
[1753896273762,0.96778641,118060.0,118050.0,0.07085]
[1753896273999,1.00230122,118060.0,118050.0,0.02772]
[1753896274859,0.35694117,118050.0,118040.0,0.02693]
[1753896275115,0.93030158,118050.0,118040.0,0.02693]
[1753896275978,0.92183096,118050.0,118040.0,0.04623]
[1753896276196,0.93030158,118050.0,118040.0,0.0494035]
[1753896276459,0.92383096,118050.0,118040.0,0.0494035]
[1753896276720,0.93230158,118050.0,118040.0,0.0494035]
[1753896276947,0.93230158,118050.0,118040.0,0.0270535]
[1753896276948,0.94924318,118050.0,118040.0,0.0270535]
[1753896277165,6.13623676,118050.0,118040.0,0.0270535]
[1753896278072,5.96681696,118050.0,118040.0,0.0270535]
[1753896278318,5.97528794,118050.0,118040.0,0.0270535]
[1753896278992,5.96681696,118050.0,118040.0,0.0270535]
[1753896279207,5.94077263,118050.0,118040.0,0.0270535]
[1753896279635,5.93230179,118050.0,118040.0,0.0270535]
[1753896279806,6.14413327,118050.0,118040.0,0.0270535]
[1753896280660,6.13566265,118050.0,118040.0,0.0270535]
[1753896281118,6.12719196,118050.0,118040.0,0.0270535]
[1753896281820,5.68419148,118050.0,118040.0,0.0270535]
[1753896282038,6.12719196,118050.0,118040.0,0.0270535]
[1753896282956,6.21166926,118050.0,118040.0,0.0270535]
[1753896283180,6.70291407,118050.0,118040.0,0.0001235]
[1753896283845,6.71678926,118050.0,118040.0,0.0001235]
[1753896284292,6.70758926,118050.0,118040.0,0.0001235]
[1753896285712,2.02531969,118050.0,118040.0,0.0001235]
[1753896285911,7.02531969,118050.0,118040.0,0.0001235]
[1753896286157,2.02531969,118050.0,118040.0,0.0001235]
[1753896286377,2.04276871,118050.0,118040.0,0.0001235]
[1753896286711,7.04276871,118050.0,118040.0,0.0001235]
[1753896287747,6.99651558,118050.0,118040.0,0.0270535]
[1753896287975,6.99751558,118050.0,118040.0,0.0270535]
[1753896288393,7.00251558,118050.0,118040.0,0.0270535]
[1753896290851,2.00251558,118050.0,118040.0,0.0270535]
[1753896291058,7.00251558,118050.0,118040.0,0.0270535]
[1753896292280,7.00251287,118050.0,118040.0,0.0266404]
[1753896293655,0.71790565,118040.0,118030.0,0.02325]
[1753896293882,0.37388823,118030.0,118020.0,0.04215]
[1753896294107,5.95634857,118030.0,118020.0,0.04426856]
[1753896294356,5.97329348,118030.0,118020.0,0.07119856]
[1753896294799,6.15661342,118030.0,118020.0,0.07119856]
[1753896295004,5.98716498,118030.0,118020.0,0.07119856]
[1753896295470,6.04337624,118030.0,118020.0,0.07119856]
[1753896295672,6.04437624,118030.0,118020.0,0.07119856]
[1753896296102,6.21382468,118030.0,118020.0,0.05032856]
[1753896296328,6.20535269,118030.0,118020.0,0.06962856]
[1753896296778,6.03590425,118030.0,118020.0,0.06962856]
[1753896297010,6.0529059,118030.0,118020.0,0.06962856]
[1753896297215,6.0274319,118030.0,118020.0,0.06962856]
[1753896297426,6.02743147,118030.0,118020.0,0.06962856]
[1753896297850,6.03337829,118030.0,118020.0,0.07177856]
[1753896298352,6.01895941,118030.0,118020.0,0.07177856]
[1753896298583,5.93330438,118030.0,118020.0,0.07177856]
[1753896299030,5.94718195,118030.0,118020.0,0.07177856]
[1753896300639,5.95565415,118030.0,118020.0,0.07177856]
[1753896301564,5.94718188,118030.0,118020.0,0.07177856]
[1753896301799,5.93870989,118030.0,118020.0,0.07177856]
[1753896302005,5.79987805,118030.0,118020.0,0.07177856]
[1753896302286,5.93023805,118030.0,118020.0,0.07177856]
[1753896303710,5.95571205,118030.0,118020.0,0.07177856]
[1753896304582,0.38235157,118030.0,118020.0,0.08574269]
[1753896304804,0.79987805,118030.0,118020.0,0.07177856]
[1753896308397,0.35687757,118030.0,118020.0,0.07177856]
[1753896308628,0.79987805,118030.0,118020.0,0.07177856]
[1753896311292,0.79989856,118030.0,118020.0,0.07177856]
[1753896313425,0.79557856,118030.0,118020.0,0.07177856]
[1753896314739,0.79557856,118030.0,118020.0,0.08574269]
[1753896314933,0.79557856,118030.0,118020.0,0.07177856]
[1753896318820,0.79557856,118030.0,118020.0,0.06657856]
[1753896319511,0.79557856,118030.0,118020.0,0.07166856]
[1753896319762,0.79558674,118030.0,118020.0,0.07166856]
[1753896319983,0.92590674,118030.0,118020.0,0.07166856]
[1753896322682,0.92591313,118030.0,118020.0,0.07166856]
[1753896323545,0.91796319,118030.0,118020.0,0.07166856]
[1753896327967,0.94400752,118030.0,118020.0,0.06657856]
[1753896328220,5.97601172,118030.0,118020.0,0.06657856]
[1753896328437,5.96043043,118030.0,118020.0,0.06657856]
[1753896329087,5.95195859,118030.0,118020.0,0.06657856]
[1753896329322,5.96043116,118030.0,118020.0,0.06657856]
[1753896329510,5.96890307,118030.0,118020.0,0.06657856]
[1753896330135,5.96043116,118030.0,118020.0,0.04727856]
[1753896330341,6.16890315,118030.0,118020.0,0.04727856]
[1753896330576,6.61190363,118030.0,118020.0,4.856e-05]
[1753896330785,6.20285028,118030.0,118020.0,4.856e-05]
[1753896331614,6.19437815,118030.0,118020.0,4.856e-05]
[1753896331828,6.19437815,118030.0,118020.0,0.02630856]
[1753896332198,6.19437913,118030.0,118020.0,0.04590856]
[1753896332676,6.20285126,118030.0,118020.0,0.04590856]
[1753896333261,1.20285126,118030.0,118020.0,0.04590856]
[1753896333463,6.20285126,118030.0,118020.0,0.04590856]
[1753896335512,6.20285119,118030.0,118020.0,0.04590856]
[1753896336036,6.19437913,118030.0,118020.0,0.04590856]
[1753896336241,6.19437913,118030.0,118020.0,0.06450856]
[1753896336711,6.19437905,118030.0,118020.0,0.06450856]
[1753896336916,6.15139097,118030.0,118020.0,0.06450856]
[1753896337128,6.02107097,118030.0,118020.0,0.06450856]
[1753896337347,1.15131097,118030.0,118020.0,0.07642842]
[1753896337549,1.15130807,118030.0,118020.0,0.07642842]
[1753896337882,0.78764426,118030.0,118020.0,0.07642842]
[1753896338085,0.44896426,118030.0,118020.0,0.07642842]
[1753896338325,0.78896426,118030.0,118020.0,0.06966856]
[1753896344175,0.78896209,118030.0,118020.0,0.06966856]
[1753896344634,0.91920209,118030.0,118020.0,0.06759856]
[1753896344853,0.95319566,118030.0,118020.0,0.06450856]
[1753896347477,0.92715133,118030.0,118020.0,0.06450856]
[1753896347722,0.92715133,118030.0,118020.0,0.06759856]
[1753896348918,0.92715259,118030.0,118020.0,0.06759856]
[1753896350397,0.96104053,118030.0,118020.0,0.06450856]
[1753896350561,0.95256835,118030.0,118020.0,0.06450856]
[1753896351678,0.96104048,118030.0,118020.0,0.06450856]
[1753896352275,0.95256835,118030.0,118020.0,0.06450856]
[1753896352589,5.96104048,118030.0,118020.0,0.06450856]
[1753896353246,0.93549144,118020.0,118010.0,0.00309]
[1753896353453,1.38445452,118020.0,118010.0,0.00516]
[1753896353580,1.51465452,118020.0,118010.0,0.00516]
[1753896355342,1.51465452,118020.0,118010.0,0.03142]
[1753896356126,1.51465484,118020.0,118010.0,0.03142]
[1753896356344,1.51465484,118020.0,118010.0,0.06732]
[1753896358578,1.38445484,118020.0,118010.0,0.06732]
[1753896359447,1.37849192,118020.0,118010.0,0.06732]
[1753896360313,1.38445499,118020.0,118010.0,0.06732]
[1753896361158,1.37849192,118020.0,118010.0,0.06732]
[1753896361789,1.71849192,118020.0,118010.0,0.02249868]
[1753896361996,1.71849192,118020.0,118010.0,0.02464868]
[1753896362634,1.72445483,118020.0,118010.0,0.02464868]
[1753896363281,1.72652483,118020.0,118010.0,0.02464868]
[1753896363946,1.72652483,118020.0,118010.0,0.05512868]
[1753896364191,1.72445483,118020.0,118010.0,0.05512868]
[1753896367840,1.72652483,118020.0,118010.0,0.05512868]
[1753896371911,1.72652483,118020.0,118010.0,0.05200868]
[1753896372138,1.85664483,118020.0,118010.0,0.05200868]
[1753896374820,1.85973483,118020.0,118010.0,0.04985868]
[1753896381207,1.85725483,118020.0,118010.0,0.04985868]
[1753896382067,1.85725886,118020.0,118010.0,0.04985868]
[1753896383907,1.85416886,118020.0,118010.0,0.04985868]
[1753896384118,1.85416886,118020.0,118010.0,0.05200868]
[1753896384347,1.85416886,118020.0,118010.0,0.05512868]
[1753896384776,2.07590442,118020.0,118010.0,0.05512868]
[1753896385435,2.40827244,118020.0,118010.0,0.05200868]
[1753896390870,2.40827244,118020.0,118010.0,0.04546]
[1753896391135,2.41135244,118020.0,118010.0,0.04546]
[1753896391935,2.41135244,118020.0,118010.0,0.06386]
[1753896392187,2.40827244,118020.0,118010.0,0.06386]
[1753896397126,2.40827326,118020.0,118010.0,0.06386]
[1753896401637,2.40827322,118020.0,118010.0,0.06386]
[1753896402701,2.41135322,118020.0,118010.0,0.06386]
[1753896405324,0.79469604,118020.0,118010.0,0.06679]
[1753896405938,0.79469604,118020.0,118010.0,0.073469]
[1753896407161,0.80316867,118020.0,118010.0,0.073469]
[1753896407357,1.14316867,118020.0,118010.0,0.073469]
[1753896407568,1.14316867,118020.0,118010.0,0.070539]
[1753896407728,1.1431686,118020.0,118010.0,0.070539]
[1753896408365,1.13469604,118020.0,118010.0,0.06679]
[1753896408593,1.14316867,118020.0,118010.0,0.06386]
[1753896408810,1.15164123,118020.0,118010.0,0.06386]
[1753896409010,1.14316853,118020.0,118010.0,0.06386]
[1753896409445,1.14316853,118020.0,118010.0,0.06679]
[1753896409881,1.16011394,118020.0,118010.0,0.06679]
[1753896410118,1.15164116,118020.0,118010.0,0.06679]
[1753896410332,1.56845949,118020.0,118010.0,0.0181]
[1753896410549,1.58488954,118020.0,118010.0,0.0181]
[1753896410774,0.53489764,118010.0,118000.0,0.019]
[1753896411019,0.53489764,118010.0,117990.0,0.04924]
[1753896411020,1.55998872,118010.0,117990.0,0.0382]
[1753896411238,0.82057604,118000.0,117990.0,0.03824853]
[1753896411475,0.48820802,118000.0,117990.0,0.03824853]
[1753896411900,0.15584,118000.0,117990.0,0.03824853]
[1753896412122,0.12996,118000.0,117990.0,0.03824853]
[1753896412345,0.12996,118000.0,117990.0,0.06828853]
[1753896412816,0.13096,118000.0,117990.0,0.06828853]
[1753896413260,0.13096,118000.0,117990.0,0.07028853]
[1753896414105,0.14101333,118000.0,117990.0,0.07028853]
[1753896414549,0.14101333,118000.0,117990.0,0.40265655]
[1753896414794,0.14101333,118000.0,117990.0,0.07028853]
[1753896417218,0.48101333,118000.0,117990.0,0.07028853]
[1753896422580,0.53196333,118000.0,117990.0,0.07028853]
[1753896422795,0.48101333,118000.0,117990.0,0.07028853]
[1753896423259,0.48101333,118000.0,117990.0,0.01904853]
[1753896423260,6.01934217,118000.0,117990.0,0.01904853]
[1753896423494,6.04077943,118000.0,117990.0,0.01904853]
[1753896424191,5.58909079,118000.0,117990.0,0.01904853]
[1753896424411,6.03230529,118000.0,117990.0,0.01904853]
[1753896424628,6.00825223,118000.0,117990.0,0.01904853]
[1753896424839,6.00825216,118000.0,117990.0,0.01904853]
[1753896425043,5.94606782,118000.0,117990.0,0.01904853]
[1753896425262,5.47680899,118000.0,117990.0,0.03604853]
[1753896425476,5.44387899,118000.0,117990.0,0.03604853]
[1753896425680,5.44387899,118000.0,117990.0,0.08140853]
[1753896425897,5.45359358,118000.0,117990.0,0.08140853]
[1753896426973,0.45359358,118000.0,117990.0,0.08140853]
[1753896427178,5.45359358,118000.0,117990.0,0.08140853]
[1753896431675,6.03116359,118000.0,117990.0,0.01904853]
[1753896431886,6.03963795,118000.0,117990.0,4.853e-05]
[1753896432096,6.08973541,118000.0,117990.0,4.853e-05]
[1753896432296,6.09820998,118000.0,117990.0,4.853e-05]
[1753896433690,6.09820991,118000.0,117990.0,4.853e-05]
[1753896433904,5.95516072,118000.0,117990.0,4.853e-05]
[1753896434121,5.94668629,118000.0,117990.0,0.01624853]
[1753896434431,5.95516065,118000.0,117990.0,0.01624853]
[1753896434631,5.96363515,118000.0,117990.0,0.01624853]
[1753896434842,5.95516065,118000.0,117990.0,0.01624853]
[1753896435042,6.13312667,118000.0,117990.0,0.01624853]
[1753896435236,6.14160124,118000.0,117990.0,0.01624853]
[1753896435695,5.96363515,118000.0,117990.0,0.01624853]
[1753896435904,6.13312667,118000.0,117990.0,0.01624853]
[1753896436334,6.18628451,118000.0,117990.0,4.853e-05]
[1753896436547,6.19224562,118000.0,117990.0,4.853e-05]
[1753896436755,6.21828995,118000.0,117990.0,4.853e-05]
[1753896436968,6.32914206,118000.0,117990.0,4.853e-05]
[1753896438017,6.4730677,118000.0,117990.0,4.853e-05]
[1753896438439,6.43467001,118000.0,117990.0,4.853e-05]
[1753896439980,6.44793603,118000.0,117990.0,4.853e-05]
[1753896440619,6.43053603,118000.0,117990.0,4.853e-05]
[1753896441288,6.41727001,118000.0,117990.0,4.853e-05]
[1753896445581,6.43053609,118000.0,117990.0,4.853e-05]
[1753896445787,6.51501339,118000.0,117990.0,4.853e-05]
[1753896446207,6.52348767,118000.0,117990.0,4.853e-05]
[1753896446663,6.52348767,118000.0,117990.0,0.01704853]
[1753896447014,6.53196224,118000.0,117990.0,0.01704853]
[1753896447428,6.53196224,118000.0,117990.0,0.01532853]
[1753896447790,6.26042309,118000.0,117990.0,0.01532853]
[1753896448432,6.25194852,118000.0,117990.0,0.01532853]
[1753896448652,6.21901852,118000.0,117990.0,0.06003853]
[1753896449105,6.21305659,118000.0,117990.0,0.06003853]
[1753896449313,6.22749302,118000.0,117990.0,0.06003853]
[1753896450121,5.77580402,118000.0,117990.0,0.06003853]
[1753896450265,6.21054409,118000.0,117990.0,0.06003853]
[1753896450459,6.21901852,118000.0,117990.0,0.06003853]
[1753896451078,6.21901845,118000.0,117990.0,0.06003853]
[1753896451506,6.22749288,118000.0,117990.0,0.06003853]
[1753896451712,6.20206981,118000.0,117990.0,0.06003853]
[1753896451917,6.21901831,118000.0,117990.0,0.06003853]
[1753896452096,6.22749281,118000.0,117990.0,0.06003853]
[1753896453089,6.44926275,118000.0,117990.0,0.06003853]
[1753896453208,6.44926436,118000.0,117990.0,0.04471]
[1753896454056,5.78427992,118000.0,117990.0,0.04471]
[1753896454262,6.44926436,118000.0,117990.0,0.04471]
[1753896455308,6.44078986,118000.0,117990.0,0.04471]
[1753896456180,6.44926463,118000.0,117990.0,0.04471]
[1753896456406,1.44926463,118000.0,117990.0,0.04471]
[1753896456624,6.44926463,118000.0,117990.0,0.04471]
[1753896456839,6.44079013,118000.0,117990.0,0.04471]
[1753896456987,6.44926463,118000.0,117990.0,0.04471]
[1753896457205,6.44874215,118000.0,117990.0,0.04471]
[1753896457616,6.29339958,118000.0,117990.0,0.06111]
[1753896457791,6.10769542,118000.0,117990.0,0.06314]
[1753896458138,6.44018764,118000.0,117990.0,0.06314]
[1753896458351,6.10769542,118000.0,117990.0,0.06314]
[1753896459874,6.11616963,118000.0,117990.0,0.06314]
[1753896460517,6.12464399,118000.0,117990.0,0.06314]
[1753896460892,6.10769542,118000.0,117990.0,0.06314]
[1753896461303,6.17393617,118000.0,117990.0,0.06314]
[1753896461505,6.17393617,118000.0,117990.0,0.09454]
[1753896461711,6.18241038,118000.0,117990.0,0.09454]
[1753896461944,6.11616963,118000.0,117990.0,0.09454]
[1753896463093,6.12464399,118000.0,117990.0,0.09454]
[1753896463306,6.11616963,118000.0,117990.0,0.09454]
[1753896463704,6.12464391,118000.0,117990.0,0.09454]
[1753896464335,5.7752032,118000.0,117990.0,0.09454]
[1753896464551,6.1161697,118000.0,117990.0,0.09454]
[1753896466241,1.1161697,118000.0,117990.0,0.09454]
[1753896466457,6.11616963,118000.0,117990.0,0.09454]
[1753896466657,6.09074736,118000.0,117990.0,0.09454]
[1753896466868,0.35527072,118000.0,117990.0,0.42703222]
[1753896467279,0.0156784,118000.0,117990.0,0.42703222]
[1753896467497,0.3556784,118000.0,117990.0,0.55683222]
[1753896469235,0.0156784,118000.0,117990.0,0.88932444]
[1753896469441,0.0156784,118000.0,117990.0,0.97380174]
[1753896471125,0.0156784,118000.0,117990.0,0.7518318]
[1753896472405,0.00971459,118000.0,117990.0,0.7518318]
[1753896472679,0.74480484,118050.0,118010.0,0.0596]
[1753896472899,5.57172632,118040.0,118030.0,0.0596]
[1753896473117,5.04808828,118040.0,118030.0,0.5493545]
[1753896473335,5.02978532,118040.0,118030.0,0.10634]
[1753896473552,5.02978532,118040.0,118030.0,0.6791545]
[1753896473971,0.36990748,118040.0,118030.0,0.23614]
[1753896474819,0.34847177,118030.0,118020.0,0.0302]
[1753896475022,5.8551489,118030.0,118010.0,0.10661]
[1753896475228,0.34,118020.0,118010.0,0.23637]
[1753896475438,0.34,118020.0,118010.0,0.2384]
[1753896475439,0.35389859,118020.0,118010.0,0.2384]
[1753896479982,0.35389435,118020.0,118010.0,0.10864]
[1753896480241,0.35389435,118020.0,118010.0,0.2384]
[1753896481512,0.36236691,118020.0,118010.0,0.2384]
[1753896481699,0.37083961,118020.0,118010.0,0.2384]
[1753896481900,0.81385411,118020.0,118010.0,0.10864]
[1753896482076,0.84510411,118020.0,118010.0,0.0302]
[1753896482404,0.83663141,118020.0,118010.0,0.15996]
[1753896482605,0.80538141,118020.0,118010.0,0.15996]
[1753896482786,0.80538141,118020.0,118010.0,0.20629]
[1753896483145,0.35389435,118020.0,118010.0,0.258909]
[1753896483594,0.35389435,118020.0,118010.0,0.7019235]
[1753896483813,0.00595584,118020.0,118010.0,0.7019235]
[1753896484051,0.3498097,118040.0,118020.0,0.0614]
[1753896484270,0.36369759,118040.0,118030.0,0.6362245]
[1753896484480,0.36369759,118040.0,118030.0,0.23954]
[1753896486057,0.36469759,118040.0,118030.0,0.23954]
[1753896486248,0.3508097,118040.0,118030.0,0.23954]
[1753896486476,0.36469382,118040.0,118030.0,0.23954]
[1753896487129,0.3646931,118040.0,118030.0,0.23954]
[1753896487570,0.35874309,118040.0,118030.0,0.23954]
[1753896487799,0.36469313,118040.0,118030.0,0.23954]
[1753896489413,0.36469304,118040.0,118030.0,0.23954]
[1753896489861,0.36569304,118040.0,118030.0,0.23954]
[1753896493783,0.35775965,118040.0,118030.0,0.23954]
[1753896497156,0.35775965,118040.0,118030.0,0.24895891]
[1753896497370,0.3518097,118040.0,118030.0,0.69197341]
[1753896498008,0.3518097,118040.0,118030.0,0.24895891]
[1753896501003,0.3518097,118040.0,118030.0,0.23954]
[1753896502177,0.3577564,118040.0,118030.0,0.23954]
[1753896502648,0.3518097,118040.0,118030.0,0.23954]
[1753896503151,0.35775659,118040.0,118030.0,0.23954]
[1753896510337,0.36568623,118040.0,118030.0,0.23954]
[1753896522455,0.36569997,118040.0,118030.0,0.23954]
[1753896522698,0.02569997,118040.0,118030.0,0.75041725]
[1753896522913,0.02569997,118040.0,118030.0,0.83489455]
[1753896524319,0.02469997,118040.0,118030.0,1.00434299]
[1753896524521,0.02469997,118040.0,118030.0,1.00634299]
[1753896524931,0.01873934,118040.0,118030.0,1.00634299]
[1753896525145,0.02470325,118040.0,118030.0,1.00634299]
[1753896525374,0.01677361,118040.0,118030.0,1.00434299]
[1753896525587,0.01677361,118040.0,118030.0,0.39188005]
[1753896525797,0.01577361,118040.0,118030.0,0.7700318]
[1753896526859,0.01577361,118040.0,118030.0,0.1972973]
[1753896527076,0.46673863,118040.0,118030.0,0.11282]
[1753896527291,0.86256305,118040.0,118030.0,0.003]
[1753896527504,0.88661618,118040.0,118030.0,0.13268]
[1753896527727,0.86256305,118040.0,118030.0,0.13268]
[1753896527943,0.83651872,118040.0,118030.0,0.12968]
[1753896528368,0.36372422,118040.0,118030.0,0.21008]
[1753896528580,0.3637245,118040.0,118030.0,0.23958]
[1753896529853,0.36372464,118040.0,118030.0,0.23958]
[1753896530308,0.35577361,118040.0,118030.0,0.23958]
[1753896531727,0.35577361,118040.0,118030.0,0.24058]
[1753896531940,0.01577361,118040.0,118030.0,0.83593455]
[1753896532146,0.0098097,118040.0,118030.0,0.83593455]
[1753896536252,0.0098097,118040.0,118030.0,1.00538299]
[1753896538522,0.0098097,118040.0,118030.0,0.93752024]
[1753896538732,0.00012338,118040.0,118030.0,0.93752024]
[1753896539163,0.01772986,118040.0,118030.0,0.7680718]
[1753896539390,0.00012338,118040.0,118030.0,0.7680718]
[1753896539623,0.00012338,118040.0,118030.0,0.6383918]
[1753896539823,0.00012338,118040.0,118030.0,0.3250173]
[1753896540419,0.00012338,118040.0,118030.0,0.1953773]
[1753896540621,0.44313788,118040.0,118030.0,0.1658773]
[1753896540863,0.86749489,118040.0,118030.0,0.13264]
[1753896541040,0.84344176,118040.0,118030.0,0.13264]
[1753896541280,0.83503855,118040.0,118030.0,0.13264]
[1753896541950,0.829079,118040.0,118030.0,0.13264]
[1753896544683,0.835039,118040.0,118030.0,0.13264]
[1753896545303,0.83503915,118040.0,118030.0,0.13264]
[1753896551724,0.87371028,118040.0,118030.0,0.13264]
[1753896551934,0.90271028,118040.0,118030.0,0.13264]
[1753896552204,0.91118155,118040.0,118030.0,0.13264]
[1753896552441,5.93607254,118040.0,118030.0,0.003]
[1753896552660,6.10550663,118040.0,118030.0,0.003]
[1753896553088,6.2266755,118040.0,118030.0,0.003]
[1753896553298,6.24412452,118040.0,118030.0,0.003]
[1753896553522,6.23565325,118040.0,118030.0,0.003]
[1753896554320,6.23565278,118040.0,118030.0,0.003]
[1753896556426,6.06621869,118040.0,118030.0,0.003]
[1753896556555,6.06621826,118040.0,118030.0,0.003]
[1753896556799,6.24412391,118040.0,118030.0,0.003]
[1753896557247,5.50131199,118040.0,118030.0,0.07872]
[1753896557428,5.49336418,118040.0,118030.0,0.10882]
[1753896558223,5.49336418,118040.0,118030.0,0.07872]
[1753896558522,5.93637868,118040.0,118030.0,0.07872]
[1753896559985,5.93637868,118040.0,118030.0,0.03454]
[1753896560190,5.93637868,118040.0,118030.0,0.07657]
[1753896560639,5.94484981,118040.0,118030.0,0.07872]
[1753896560856,5.36372418,118040.0,118030.0,0.07872]
[1753896561078,5.36372418,118040.0,118030.0,0.10832]
[1753896562018,0.36372418,118040.0,118030.0,0.10832]
[1753896562448,0.36372178,118040.0,118030.0,0.10832]
[1753896562631,0.0235984,118040.0,118030.0,0.10832]
[1753896563713,0.4666129,118040.0,118030.0,0.10832]
[1753896564121,0.47508395,118040.0,118030.0,0.003]
[1753896564325,0.4945129,118040.0,118030.0,0.13264]
[1753896564538,0.4666129,118040.0,118030.0,0.16294]
[1753896564706,0.4666129,118040.0,118030.0,0.20811]
[1753896565991,0.47508403,118040.0,118030.0,0.20811]
[1753896566178,0.48302899,118040.0,118030.0,0.07847]
[1753896566606,0.4666129,118040.0,118030.0,0.07847]
[1753896566795,0.47508395,118040.0,118030.0,0.07847]
[1753896568230,0.82303067,118040.0,118030.0,0.08054]
[1753896569697,0.83150187,118040.0,118030.0,0.08054]
[1753896570050,0.82303067,118040.0,118030.0,0.08054]
[1753896570261,0.83150187,118040.0,118030.0,0.07847]
[1753896570463,0.83150187,118040.0,118030.0,0.003]
[1753896570691,0.85991187,118040.0,118030.0,0.003]
[1753896570863,0.83150187,118040.0,118030.0,0.003]
[1753896571087,0.83150187,118040.0,118030.0,0.07444]
[1753896571695,0.82303067,118040.0,118030.0,0.07444]
[1753896571966,0.8315018,118040.0,118030.0,0.07651]
[1753896573149,0.839973,118040.0,118030.0,0.07651]